bitfinex-derivatives/quotes_BTCF0:USTF0_20250406
["timestamp","ask_amount","ask_price","bid_price","bid_amount"]
[1743978471614,0.6375245,78965.0,78964.0,0.0012]
[1743978471914,0.1267517,78948.0,78947.0,0.006]
[1743978472103,0.0633748,78950.0,78937.0,0.3608]
[1743978472104,0.1267678,78938.0,78937.0,0.3608]
[1743978472302,0.1267678,78938.0,78937.0,0.362]
[1743978473016,0.1267823,78929.0,78928.0,0.3608]
[1743978473607,0.0633863,78935.0,78928.0,0.4874825]
[1743978473806,0.3608,78956.0,78934.0,0.3608]
[1743978474007,0.0633756,78949.0,78944.0,0.1267582]
[1743978474208,0.1267408,78955.0,78945.0,0.0633781]
[1743978474408,0.0633672,78959.0,78946.0,0.3804]
[1743978474615,0.1267437,78953.0,78952.0,0.3608]
[1743978475010,0.1275837,78953.0,78952.0,0.48829843]
[1743978475215,0.3608,78974.0,78952.0,0.48829843]
[1743978475414,0.1267263,78964.0,78962.0,0.3608]
[1743978475608,0.1267261,78964.0,78963.0,0.3804]
[1743978475915,0.0633574,78971.0,78963.0,0.74208]
[1743978476111,0.1832,78973.0,78963.0,0.92925832]
[1743978476313,0.0633502,78980.0,78972.0,0.3608]
[1743978476513,0.0642703,78980.0,78979.0,0.3608]
[1743978476713,0.0642703,78980.0,78979.0,0.36164]
[1743978477014,0.0642703,78980.0,78979.0,0.48828078]
[1743978477214,0.0633503,78980.0,78979.0,0.48828078]
[1743978477617,0.0641903,78980.0,78979.0,0.48828078]
[1743978477820,0.0681903,78980.0,78979.0,0.48828078]
[1743978478911,0.0681903,78980.0,78979.0,0.36164]
[1743978479422,0.3034903,78980.0,78979.0,0.36164]
[1743978479608,0.00484,78980.0,78979.0,0.48825513]
[1743978479804,0.1307004,78980.0,78979.0,0.48825513]
[1743978480214,0.1307004,78980.0,78979.0,0.12745513]
[1743978480916,0.1267004,78980.0,78979.0,0.13345513]
[1743978481213,0.1267004,78980.0,78979.0,0.00684]
[1743978481413,0.1267004,78980.0,78979.0,0.13345513]
[1743978481617,0.1267004,78980.0,78979.0,0.49425513]
[1743978483705,0.0643492,78982.0,78979.0,0.85505513]
[1743978484010,0.0643492,78982.0,78980.0,0.3769]
[1743978484416,0.1266988,78981.0,78980.0,0.3769]
[1743978484721,0.063337,78997.0,78980.0,0.3769]
[1743978484722,0.0633073,79034.0,78995.0,0.3608]
[1743978484912,0.1266253,79027.0,79023.0,0.3608]
[1743978485112,0.1266037,79041.0,79024.0,0.13168]
[1743978485317,0.00064,79050.0,79040.0,0.7216]
[1743978485615,0.3608,79084.0,79049.0,0.3608]
[1743978485816,0.3608,79084.0,79069.0,0.3608]
[1743978485817,0.54812771,79070.0,79069.0,0.3608]
[1743978486117,0.01109848,79070.0,79069.0,0.49244]
[1743978486311,0.13865468,79070.0,79069.0,0.3608]
[1743978486506,0.13865468,79070.0,79069.0,0.48832701]
[1743978486712,0.13765468,79070.0,79069.0,0.3608]
[1743978487110,0.13765468,79070.0,79069.0,0.12648701]
[1743978487316,0.13765468,79070.0,79069.0,0.48728701]
[1743978487517,0.13765468,79070.0,79069.0,0.3608]
[1743978487716,0.28765468,79070.0,79069.0,0.3608]
[1743978488018,0.1265882,79050.0,79049.0,0.3608]
[1743978488214,0.0632949,79049.0,79041.0,0.388]
[1743978488414,0.1265973,79045.0,79042.0,0.12647101]
[1743978488610,0.1265978,79044.0,79043.0,0.1931]
[1743978488819,0.3608,79044.0,79026.0,0.1949]
[1743978489010,0.3608,79044.0,79036.0,0.12661]
[1743978489011,0.3762,79043.0,79036.0,0.12661]
[1743978489211,0.1266234,79028.0,79027.0,0.00018981]
[1743978489522,0.1266234,79028.0,79027.0,0.55508981]
[1743978489719,0.00012218,79028.0,79027.0,0.55508981]
[1743978489920,0.00012218,79028.0,79027.0,0.86981073]
[1743978490114,0.00018939,79043.0,79029.0,0.0633105]
[1743978490318,0.3608,79080.0,79038.0,0.7216]
[1743978490512,0.1265434,79078.0,79077.0,0.3608]
[1743978490717,0.1265735,79060.0,79059.0,0.3608]
[1743978491125,0.063266,79086.0,79059.0,0.3608]
[1743978491319,0.063266,79086.0,79072.0,0.3608]
[1743978491320,0.1898283,79073.0,79072.0,0.3608]
[1743978491623,0.3170205,79073.0,79072.0,0.3618]
[1743978491814,0.5025205,79073.0,79072.0,0.3618]
[1743978492019,0.5025205,79073.0,79072.0,0.48828701]
[1743978492720,0.1265658,79064.0,79063.0,0.00018969]
[1743978492915,0.1272858,79064.0,79063.0,0.00090969]
[1743978493316,0.1272858,79064.0,79063.0,0.1273903]
[1743978494415,0.1272858,79064.0,79063.0,0.1333903]
[1743978495123,0.6579858,79064.0,79063.0,0.00690969]
[1743978495317,0.3135858,79064.0,79063.0,0.00690969]
[1743978495625,0.3135858,79064.0,79063.0,0.1333903]
[1743978496721,0.001,79102.0,79068.0,0.0632793]
[1743978497023,0.001,79102.0,79089.0,0.3608]
[1743978497228,0.126513,79097.0,79096.0,0.3608]
[1743978497424,0.1911,79099.0,79080.0,0.35700276]
[1743978497621,0.001,79102.0,79080.0,0.35700276]
[1743978497622,0.11117462,79101.0,79096.0,0.3608]
[1743978497824,0.1265098,79099.0,79098.0,0.3608]
[1743978498122,0.1265098,79099.0,79098.0,0.36172]
[1743978498535,0.1265098,79099.0,79098.0,0.48814544]
[1743978498825,0.1265098,79099.0,79098.0,0.12020337]
[1743978499032,0.6373098,79099.0,79087.0,0.00018969]
[1743978499224,0.6373098,79099.0,79087.0,9e-08]
[1743978499225,0.1265274,79088.0,79087.0,9e-08]
[1743978499422,0.4873274,79088.0,79087.0,9e-08]
[1743978499734,0.2765274,79088.0,79087.0,9e-08]
[1743978500225,0.1265418,79079.0,79078.0,0.3608]
[1743978500429,0.1272218,79079.0,79078.0,0.00068]
[1743978500726,0.1265658,79064.0,79055.0,0.3608]
[1743978501030,0.1265658,79064.0,79063.0,0.0008]
[1743978501031,0.1273658,79064.0,79063.0,0.0008]
[1743978501218,0.1265786,79056.0,79055.0,0.5461]
[1743978501418,0.1273786,79056.0,79055.0,0.5469]
[1743978501820,0.1273786,79056.0,79055.0,0.12728061]
[1743978502029,0.1273786,79056.0,79055.0,0.12648061]
[1743978502219,0.1273786,79056.0,79055.0,0.12712061]
[1743978502430,0.1273786,79056.0,79055.0,0.00064]
[1743978502621,0.1273786,79056.0,79055.0,0.19684]
[1743978502822,0.1273786,79056.0,79055.0,0.32333341]
[1743978503028,0.1273786,79056.0,79055.0,0.12713341]
[1743978503234,0.1273786,79056.0,79055.0,0.12649341]
[1743978503417,0.1273786,79056.0,79055.0,0.12713341]
[1743978503624,0.1273786,79056.0,79055.0,0.36744]
[1743978503820,0.1273786,79056.0,79055.0,0.49393341]
[1743978504224,0.1273786,79056.0,79055.0,0.48793341]
[1743978504426,0.1273786,79056.0,79055.0,0.49393341]
[1743978505230,0.1273786,79056.0,79055.0,0.13313341]
[1743978505623,0.5026786,79056.0,79055.0,0.13313341]
[1743978505824,0.5026786,79056.0,79055.0,0.12713341]
[1743978506025,0.5026786,79056.0,79055.0,0.13313341]
[1743978506227,0.1265898,79049.0,79048.0,0.00018969]
[1743978506529,0.12754981,79049.0,79048.0,9e-08]
[1743978506733,0.27754981,79049.0,79048.0,9e-08]
[1743978507537,0.28304001,79049.0,79028.0,9e-08]
[1743978507834,0.4874218,79029.0,79028.0,9e-08]
[1743978508038,0.12758181,79029.0,79028.0,9e-08]
[1743978508429,0.12758181,79029.0,79028.0,0.1265207]
[1743978508628,0.12770379,79029.0,79028.0,0.1265207]
[1743978508840,0.50110379,79029.0,79028.0,0.1265207]
[1743978509140,0.12770379,79029.0,79028.0,0.1265207]
[1743978510337,0.50110379,79029.0,79028.0,0.4873207]
[1743978510639,0.50210379,79029.0,79028.0,0.36080009]
[1743978511337,0.50210379,79029.0,79028.0,0.48733671]
[1743978511631,0.1266379,79019.0,79011.0,0.36181251]
[1743978512433,0.5018379,79019.0,79011.0,0.36181251]
[1743978512634,0.50193282,79019.0,79011.0,0.36181251]
[1743978512829,0.1266667,79001.0,79000.0,0.3608]
[1743978513339,0.42423952,79001.0,78988.0,0.1908]
[1743978513540,0.1266876,78988.0,78987.0,0.36181282]
[1743978513745,0.1266876,78988.0,78987.0,0.00101282]
[1743978513945,0.1266876,78988.0,78987.0,0.12756546]
[1743978514127,0.063346,78986.0,78982.0,0.18971305]
[1743978514335,0.1266988,78981.0,78980.0,1e-08]
[1743978514532,0.1267036,78978.0,78977.0,0.22406709]
[1743978514832,0.1267068,78976.0,78970.0,0.22544792]
[1743978515036,0.1267068,78976.0,78971.0,0.1802]
[1743978515344,0.1267068,78976.0,78971.0,0.375]
[1743978515640,0.12766681,78976.0,78975.0,1.22321834]
[1743978515842,0.1267068,78976.0,78975.0,0.86241834]
[1743978516737,0.1267068,78976.0,78975.0,1.22321834]
[1743978517040,0.1277068,78976.0,78975.0,1.22321834]
[1743978517240,0.1277068,78976.0,78975.0,0.70400694]
[1743978517442,0.126718,78969.0,78968.0,8e-08]
[1743978517630,0.127718,78969.0,78968.0,8e-08]
[1743978518436,0.1267245,78965.0,78964.0,0.22406709]
[1743978518641,0.1267261,78964.0,78963.0,0.00101313]
[1743978518837,0.85918611,78964.0,78963.0,0.00101313]
[1743978519040,0.85918611,78964.0,78963.0,3e-08]
[1743978519236,1.22008161,78964.0,78963.0,3e-08]
[1743978520142,1.22108161,78964.0,78963.0,3e-08]
[1743978521561,1.37098611,78964.0,78963.0,3e-08]
[1743978523155,1.22098611,78964.0,78963.0,3e-08]
[1743978523349,1.22108035,78964.0,78963.0,3e-08]
[1743978523966,1.22108035,78964.0,78956.0,6e-08]
[1743978523967,0.1267373,78957.0,78956.0,6e-08]
[1743978524162,0.48865224,78957.0,78956.0,6e-08]
[1743978524852,0.68265224,78957.0,78956.0,6e-08]
[1743978525657,0.68365224,78957.0,78956.0,6e-08]
[1743978526351,0.6835373,78957.0,78956.0,6e-08]
[1743978527350,0.1267646,78940.0,78939.0,0.00101343]
[1743978527562,0.48768495,78940.0,78939.0,0.00101343]
[1743978528055,0.12784496,78940.0,78939.0,0.00101343]
[1743978528855,0.12784496,78940.0,78939.0,0.12769272]
[1743978529453,0.1267646,78940.0,78939.0,0.27769272]
[1743978529656,0.1277646,78940.0,78939.0,0.27769272]
[1743978529960,0.1277646,78940.0,78939.0,0.12769272]
[1743978530257,0.1285246,78940.0,78939.0,0.12841272]
[1743978530457,0.12864816,78940.0,78939.0,0.27841272]
[1743978530663,0.00018994,78947.0,78939.0,0.27841272]
[1743978530965,0.1267477,78951.0,78946.0,0.3608]
[1743978531165,0.1267478,78951.0,78950.0,0.3608]
[1743978531351,0.1267478,78951.0,78950.0,0.36152]
[1743978531554,0.0633719,78953.0,78950.0,0.63819367]
[1743978531755,0.0633617,78966.0,78951.0,0.3884]
[1743978531954,0.1267228,78966.0,78965.0,0.3608]
[1743978532154,0.00068,78966.0,78965.0,0.49228]
[1743978532358,0.14823283,78997.0,78965.0,1.1297288]
[1743978532554,0.00068,78987.0,78978.0,0.3608]
[1743978532762,0.00068,78987.0,78986.0,0.3608]
[1743978533067,0.11117462,78993.0,78986.0,0.4922]
[1743978533363,0.11185462,78993.0,78992.0,0.3608]
[1743978533565,0.14842277,78997.0,78996.0,0.1266747]
[1743978533770,0.18546504,79003.0,78996.0,0.36148]
[1743978534062,0.18610504,79003.0,79001.0,0.3608]
[1743978534264,0.18610504,79003.0,79002.0,0.199]
[1743978534464,0.31276854,79003.0,79002.0,0.25029082]
[1743978534769,0.0633048,79037.0,79005.0,0.06333]
[1743978534966,0.29703552,79028.0,79008.0,0.3608]
[1743978535157,0.1266539,79009.0,79008.0,0.36176]
[1743978535958,0.1266539,79009.0,79008.0,0.61901106]
[1743978536162,0.1266539,79009.0,79008.0,0.62001106]
[1743978536358,0.0633254,79011.0,79008.0,0.62001106]
[1743978536557,0.0633254,79011.0,79008.0,0.62952239]
[1743978536957,0.063307,79034.0,79021.0,0.0633172]
[1743978537159,0.0633057,79036.0,79029.0,0.3608]
[1743978537359,0.126609,79038.0,79029.0,0.36176]
[1743978537554,0.1266093,79037.0,79029.0,0.48832705]
[1743978537761,0.1266108,79036.0,79029.0,0.48832705]
[1743978538471,0.00018981,79037.0,79029.0,0.48832705]
[1743978538472,0.00018981,79037.0,79036.0,0.1266106]
[1743978538667,0.14916482,79039.0,79038.0,0.1266074]
[1743978538869,0.14916482,79039.0,79038.0,0.1276074]
[1743978539169,0.1265964,79045.0,79038.0,0.12753502]
[1743978539465,0.1265964,79045.0,79044.0,0.3608]
[1743978539762,0.1265964,79045.0,79044.0,0.36176]
[1743978540169,0.1265964,79045.0,79044.0,0.48828061]
[1743978540369,0.0632962,79048.0,79044.0,0.48828061]
[1743978540567,0.1898887,79048.0,79045.0,0.3844]
[1743978540765,0.00018981,79052.0,79051.0,0.1265866]
[1743978540970,0.0632752,79074.0,79055.0,0.1265792]
[1743978541164,0.6325715,79097.0,79060.0,0.3608]
[1743978541165,0.1265706,79061.0,79060.0,0.3608]
[1743978541370,0.1265706,79061.0,79060.0,0.00096]
[1743978541571,0.1265946,79046.0,79045.0,0.1977]
[1743978541870,0.1265946,79046.0,79045.0,0.19874]
[1743978542069,0.1265946,79046.0,79045.0,0.32523981]
[1743978542465,0.1265946,79046.0,79045.0,0.00104]
[1743978542965,0.0633011,79042.0,79038.0,0.00018981]
[1743978543169,0.5108,79046.0,79013.0,2.58948]
[1743978543170,0.1266298,79024.0,79023.0,0.1977]
[1743978543676,0.4490141,79025.0,79021.0,0.3608]
[1743978543979,0.126633,79022.0,79021.0,0.3608]
[1743978544164,0.1266427,79016.0,79015.0,0.1948]
[1743978544564,0.1266443,79015.0,79014.0,0.00018981]
[1743978544967,0.1274043,79015.0,79014.0,0.00018981]
[1743978545173,0.0633253,79012.0,79004.0,0.3608]
[1743978545470,0.1266603,79005.0,79004.0,0.36144]
[1743978545771,0.1273803,79005.0,79004.0,0.36144]
[1743978545966,0.1273803,79005.0,79004.0,0.00064]
[1743978546167,0.1266843,78990.0,78989.0,0.1889]
[1743978546468,0.1266843,78990.0,78989.0,0.38438]
[1743978546663,0.1273243,78990.0,78989.0,0.38438]
[1743978546863,0.1273243,78990.0,78989.0,0.51095506]
[1743978547467,0.1283243,78990.0,78989.0,0.32305506]
[1743978547867,0.1283243,78990.0,78989.0,0.00168]
[1743978548272,0.00164,78990.0,78989.0,0.1282791]
[1743978548478,0.1276843,78990.0,78989.0,0.4890791]
[1743978548675,0.1276843,78990.0,78989.0,0.8537791]
[1743978548864,0.1276843,78990.0,78989.0,0.6712791]
[1743978549070,0.1276843,78990.0,78989.0,0.4890791]
[1743978549269,0.1273243,78990.0,78989.0,0.4880791]
[1743978549573,0.8880243,78990.0,78989.0,0.00468]
[1743978549767,0.8880243,78990.0,78989.0,0.004]
[1743978550075,0.1266876,78988.0,78987.0,0.00101282]
[1743978550277,0.1266956,78983.0,78975.0,0.3608]
[1743978550466,0.1273356,78983.0,78982.0,0.36098981]
[1743978550774,0.1273356,78983.0,78982.0,0.36162981]
[1743978551176,0.3099356,78983.0,78982.0,0.36162981]
[1743978553465,0.3109356,78983.0,78982.0,0.36162981]
[1743978553972,0.3109356,78983.0,78974.0,0.0001501]
[1743978553973,0.1267084,78975.0,78974.0,0.0001501]
[1743978554272,0.1274684,78975.0,78974.0,0.3609501]
[1743978554476,0.1274684,78975.0,78974.0,0.3615901]
[1743978554877,0.5040684,78975.0,78974.0,0.3615901]
[1743978555072,0.3079684,78975.0,78974.0,0.48820042]
[1743978555574,0.1274684,78975.0,78974.0,0.48820042]
[1743978555781,0.1274684,78975.0,78974.0,0.68230042]
[1743978556171,0.1284684,78975.0,78974.0,0.68230042]
[1743978556979,0.00176,78975.0,78974.0,0.83230042]
[1743978557175,0.0633495,78981.0,78974.0,0.96254042]
[1743978557480,0.0633359,78998.0,78978.0,0.3608]
[1743978557686,0.0633431,78989.0,78988.0,0.3608]
[1743978558183,0.1927,78997.0,78988.0,0.48742315]
[1743978558480,0.001,79030.0,78995.0,0.3608]
[1743978558481,0.00018993,78996.0,78995.0,0.3608]
[1743978558677,0.1927,79010.0,78995.0,0.491]
[1743978558882,0.1266747,78996.0,78995.0,0.491]
[1743978559077,0.1266747,78996.0,78995.0,0.3608]
[1743978559287,0.1266747,78996.0,78995.0,0.491]
[1743978559583,0.1266747,78996.0,78995.0,0.61758948]
[1743978560084,0.00068,78996.0,78995.0,0.61826948]
[1743978560384,0.00018993,79003.0,78995.0,0.61826948]
[1743978560579,0.00018993,79003.0,79002.0,0.3608]
[1743978560773,0.1856,79013.0,79003.0,0.1266624]
[1743978560974,0.3129275,79013.0,79012.0,0.3608]
[1743978561177,0.3129275,79013.0,79012.0,0.36156]
[1743978561776,0.3129275,79013.0,79012.0,0.48812946]
[1743978561975,0.3129275,79013.0,79012.0,0.53968982]
[1743978562485,0.1273275,79013.0,79012.0,0.53968982]
[1743978564080,0.1273275,79013.0,79012.0,0.54068982]
[1743978564288,0.1283275,79013.0,79012.0,0.54068982]
[1743978567490,0.00168,79013.0,79005.0,0.00018993]
[1743978567789,0.0633353,78999.0,78988.0,0.3608]
[1743978568091,0.126686,78989.0,78988.0,0.41302923]
[1743978568293,0.126686,78989.0,78988.0,0.422326]
[1743978568891,0.126686,78989.0,78988.0,0.17882192]
[1743978569283,0.126686,78989.0,78988.0,0.05222923]
[1743978569494,0.1266972,78982.0,78981.0,0.00018993]
[1743978570096,0.1274572,78982.0,78981.0,0.05342446]
[1743978570305,0.1274572,78982.0,78981.0,0.18002516]
[1743978570507,0.00076,78982.0,78981.0,0.18932003]
[1743978570708,0.1276972,78982.0,78981.0,0.18932003]
[1743978570893,0.4891772,78982.0,78981.0,0.18932003]
[1743978571209,0.4891772,78982.0,78974.0,0.0001501]
[1743978571210,0.1267084,78975.0,78974.0,0.0001501]
[1743978571406,0.1267084,78975.0,78974.0,0.0009101]
[1743978571800,0.1267043,78978.0,78974.0,0.0009101]
[1743978572000,0.00068,78978.0,78974.0,0.17859431]
[1743978572192,0.001,78982.0,78975.0,0.1844]
[1743978572392,0.1267068,78976.0,78975.0,0.18508]
[1743978572592,0.001,78982.0,78981.0,0.1266988]
[1743978572803,0.1276972,78982.0,78981.0,0.36152]
[1743978573000,0.1273772,78982.0,78981.0,0.36152]
[1743978573709,0.1273772,78982.0,78981.0,0.48813192]
[1743978573903,0.1283772,78982.0,78981.0,0.48813192]
[1743978574507,0.1283772,78982.0,78981.0,0.61483072]
[1743978574508,0.00168,78982.0,78981.0,0.61483072]
[1743978574706,0.001,78982.0,78981.0,0.48813192]
[1743978575099,0.1276972,78982.0,78981.0,0.48813192]
[1743978575708,0.001,78982.0,78981.0,0.61483072]
[1743978575900,0.1266853,78990.0,78984.0,0.1266932]
[1743978576100,0.1274453,78990.0,78989.0,0.3608]
[1743978576300,0.1274453,78990.0,78989.0,0.36148]
[1743978576496,0.0633224,79015.0,78989.0,0.36148]
[1743978576697,0.1266683,79000.0,78999.0,0.3608]
[1743978576902,0.1273883,79000.0,78999.0,0.36176]
[1743978577401,0.1273883,79000.0,78999.0,0.48834307]
[1743978577601,0.0633166,79022.0,78999.0,0.48834307]
[1743978577805,0.31432201,79009.0,79008.0,0.3608]
[1743978578005,0.18830811,79009.0,79008.0,0.6183755]
[1743978578201,0.3608,79034.0,79012.0,0.0633243]
[1743978578411,0.1266234,79028.0,79027.0,0.3608]
[1743978578713,0.1279434,79028.0,79027.0,0.3622]
[1743978578909,0.1266234,79028.0,79027.0,0.3622]
[1743978579105,0.1266234,79028.0,79027.0,0.87906866]
[1743978579306,0.1266234,79028.0,79027.0,0.93154114]
[1743978579906,0.1276234,79028.0,79027.0,0.93354114]
[1743978580402,0.001,79030.0,79027.0,0.93354114]
[1743978580604,0.1266234,79028.0,79027.0,0.93354114]
[1743978580804,0.1266234,79028.0,79027.0,0.72707224]
[1743978581003,0.1266234,79028.0,79027.0,0.53367224]
[1743978581215,0.1266234,79028.0,79027.0,0.17287224]
[1743978581509,0.3198234,79028.0,79027.0,0.17287224]
[1743978583311,0.3198234,79028.0,79027.0,0.17087224]
[1743978583515,0.3208234,79028.0,79027.0,0.17287224]
[1743978586707,0.3198234,79028.0,79027.0,0.17087224]
[1743978587015,0.3208234,79028.0,79027.0,0.17287224]
[1743978588112,0.0633091,79032.0,79027.0,0.17287224]
[1743978588113,0.0001898,79035.0,79027.0,0.17287224]
[1743978588317,0.126802,79035.0,79034.0,0.3608]
[1743978588507,0.496902,79035.0,79034.0,0.36212]
[1743978588708,0.1874898,79035.0,79034.0,0.36212]
[1743978589017,0.1874898,79035.0,79034.0,0.61527203]
[1743978589218,0.0632791,79069.0,79042.0,0.0632998]
[1743978589412,0.1873,79057.0,79050.0,0.7216]
[1743978589718,0.1821,79068.0,79057.0,0.0632881]
[1743978589913,0.1918,79067.0,79066.0,0.3608]
[1743978590108,0.318361,79067.0,79066.0,0.00132]
[1743978590415,0.318361,79067.0,79050.0,0.59147565]
[1743978590416,0.1265866,79051.0,79050.0,0.3608]
[1743978590609,0.1265761,79058.0,79050.0,0.36212]
[1743978590806,0.1918,79053.0,79051.0,0.31627581]
[1743978591009,0.1821,79052.0,79051.0,0.31759581]
[1743978591211,0.308685,79052.0,79051.0,0.19112]
[1743978591410,0.1918,79053.0,79051.0,0.44418191]
[1743978591709,0.1821,79061.0,79054.0,0.126581]
[1743978592005,0.3739,79061.0,79059.0,0.3608]
[1743978592318,0.5004706,79061.0,79060.0,0.1898]
[1743978592519,0.5004706,79061.0,79060.0,0.19112]
[1743978592913,0.1918,79061.0,79060.0,0.31760621]
[1743978593313,0.1968,79061.0,79060.0,0.50360621]
[1743978593511,0.005,79061.0,79060.0,0.63017841]
[1743978593715,0.1799,79072.0,79061.0,0.0632851]
[1743978594013,0.001,79078.0,79071.0,0.3608]
[1743978594217,0.001,79078.0,79075.0,0.1265475]
[1743978594414,0.001,79078.0,79077.0,0.126545]
[1743978594620,0.001,79078.0,79077.0,0.506365]
[1743978595008,0.001,79078.0,79077.0,0.63283121]
[1743978595212,0.001,79078.0,79077.0,0.67560281]
[1743978595722,0.1265722,79060.0,79050.0,0.23067565]
[1743978596015,0.3899,79077.0,79059.0,0.0634763]
[1743978596220,0.1265546,79071.0,79070.0,0.12645822]
[1743978596521,0.1265546,79071.0,79070.0,0.3608]
[1743978596721,0.1265546,79071.0,79070.0,0.36172]
[1743978597320,0.1265546,79071.0,79070.0,0.48819341]
[1743978598919,0.1275546,79071.0,79070.0,0.49319341]
[1743978599125,0.001,79071.0,79070.0,0.49319341]
[1743978599425,0.1275546,79071.0,79070.0,0.49319341]
[1743978600620,0.1275546,79071.0,79070.0,0.00592]
[1743978600822,0.1275546,79071.0,79070.0,0.005]
[1743978601423,0.1275546,79071.0,79070.0,0.006]
[1743978601619,0.1265722,79060.0,79052.0,0.3608]
[1743978601818,0.1265722,79060.0,79059.0,0.0001898]
[1743978602222,0.1265722,79060.0,79059.0,0.48745921]
[1743978602530,0.1265962,79045.0,79044.0,0.3608]
[1743978602729,0.1266138,79034.0,79030.0,0.23067565]
[1743978602929,0.1266138,79034.0,79021.0,0.66319349]
[1743978602930,0.1266138,79034.0,79023.0,0.3608]
[1743978603124,0.1266138,79034.0,79021.0,0.30239349]
[1743978603125,0.126633,79022.0,79021.0,0.30239349]
[1743978603320,0.1266459,79014.0,79013.0,0.28130608]
[1743978603626,0.1266459,79014.0,79013.0,0.23710939]
[1743978604024,0.12678008,79014.0,79013.0,0.23710939]
[1743978604332,0.50748008,79014.0,79013.0,0.20122489]
[1743978604826,0.0633254,79011.0,79007.0,0.37955415]
[1743978605027,0.1266555,79008.0,79007.0,0.38019415]
[1743978605234,0.1266555,79008.0,78989.0,0.5544]
[1743978605235,0.1266667,79001.0,78981.0,0.3608]
[1743978605417,0.4875792,79001.0,79000.0,0.4528883]
[1743978605724,0.4883792,79001.0,79000.0,0.4528883]
[1743978606129,0.1266876,78988.0,78987.0,0.36181282]
[1743978606320,0.1841,79000.0,78993.0,0.0001898]
[1743978606517,0.3107779,78994.0,78993.0,0.0008298]
[1743978606720,0.3117779,78994.0,78993.0,0.0008298]
[1743978606927,0.1266876,78988.0,78987.0,0.00101282]
[1743978607228,0.12802899,78988.0,78987.0,0.00101282]
[1743978608422,0.12902899,78988.0,78987.0,0.00101282]
[1743978608622,0.00234139,78988.0,78987.0,0.12833513]
[1743978608823,0.12902899,78988.0,78987.0,0.12833513]
[1743978609023,0.48982899,78988.0,78987.0,0.00173282]
[1743978609224,0.48882899,78988.0,78987.0,0.00173282]
[1743978609430,0.48982899,78988.0,78987.0,0.00173282]
[1743978610133,0.48982899,78988.0,78987.0,0.12833513]
[1743978610621,0.12902899,78988.0,78987.0,0.12833513]
[1743978610825,0.12902899,78988.0,78987.0,0.13033513]
[1743978611635,0.12802899,78988.0,78987.0,0.12833513]
[1743978611935,0.12902899,78988.0,78987.0,0.13033513]
[1743978612329,0.12902899,78988.0,78987.0,0.50093513]
[1743978614042,0.12902899,78988.0,78987.0,0.09465493]
[1743978614227,0.12902899,78988.0,78980.0,0.042765]
[1743978614228,0.1266988,78981.0,78980.0,0.042765]
[1743978614433,0.1267196,78968.0,78953.0,0.3608]
[1743978614633,0.12821012,78968.0,78954.0,0.3946]
[1743978614841,0.12821012,78968.0,78963.0,0.01059842]
[1743978615036,0.12821012,78968.0,78967.0,0.04472874]
[1743978615231,0.32311012,78968.0,78967.0,0.04472874]
[1743978615436,0.51861012,78968.0,78967.0,0.04472874]
[1743978616144,0.88041012,78968.0,78967.0,0.04672874]
[1743978616636,0.49001012,78968.0,78967.0,0.04672874]
[1743978616835,0.12921012,78968.0,78967.0,0.17336311]
[1743978617035,0.00249052,78968.0,78967.0,0.17336311]
[1743978617244,0.00109051,78968.0,78967.0,0.17336311]
[1743978617441,0.12681011,78968.0,78967.0,0.17136311]
[1743978617741,0.12681011,78968.0,78967.0,0.65888431]
[1743978617742,0.00109051,78968.0,78967.0,0.65888431]
[1743978617937,0.00018994,78975.0,78974.0,0.12671]
[1743978618144,0.00018994,78975.0,78974.0,0.3608]
[1743978618343,0.12689834,78975.0,78974.0,0.3608]
[1743978618637,0.12689834,78975.0,78974.0,0.48742315]
[1743978619037,0.12696283,78975.0,78974.0,0.48742315]
[1743978619341,0.12696283,78975.0,78974.0,0.76413315]
[1743978619342,0.00025443,78975.0,78974.0,0.76413315]
[1743978619545,0.12696283,78975.0,78974.0,0.48742315]
[1743978619742,0.12796283,78975.0,78974.0,0.48742315]
[1743978620140,0.12936284,78975.0,78974.0,0.48742315]
[1743978621737,0.12936284,78975.0,78974.0,0.48942315]
[1743978621940,0.12936284,78975.0,78974.0,0.12862315]
[1743978622439,0.1267148,78971.0,78970.0,0.1956]
[1743978622640,0.1267196,78968.0,78967.0,0.04472874]
[1743978622938,0.1267261,78964.0,78957.0,0.3608]
[1743978623335,0.00140001,78964.0,78957.0,0.3608]
[1743978623535,0.00140001,78964.0,78957.0,0.5505]
[1743978623733,0.0015541,78964.0,78957.0,0.5505]
[1743978624337,0.5174802,78964.0,78957.0,0.5505]
[1743978624741,0.3907541,78964.0,78957.0,0.5505]
[1743978625242,0.3917541,78964.0,78963.0,0.00201313]
[1743978625642,0.3917541,78964.0,78963.0,0.04639006]
[1743978625946,0.5184802,78964.0,78963.0,0.04639006]
[1743978627841,0.5184802,78964.0,78963.0,0.40719006]
[1743978628232,0.5184802,78964.0,78963.0,0.04639006]
[1743978628437,0.5184802,78964.0,78963.0,0.04529954]
[1743978628438,0.8792802,78964.0,78963.0,0.04529954]
[1743978629046,1.26330021,78964.0,78960.0,0.00018994]
[1743978629248,1.26330021,78964.0,78941.0,0.1918]
[1743978629249,0.1267614,78942.0,78941.0,0.1918]
[1743978629446,0.00159827,78942.0,78941.0,0.1918]
[1743978629644,0.00159827,78942.0,78941.0,0.23531613]
[1743978629946,0.00011827,78942.0,78941.0,0.41551613]
[1743978630251,0.00163827,78942.0,78941.0,0.54215932]
[1743978630643,0.00163827,78942.0,78941.0,0.55168375]
[1743978631042,0.00011827,78942.0,78941.0,0.55168375]
[1743978631845,0.51091827,78942.0,78939.0,0.00101343]
[1743978632048,0.51091827,78942.0,78879.0,0.85904055]
[1743978632049,0.36079996,78916.0,78898.0,0.00960902]
[1743978632235,0.1268272,78901.0,78879.0,0.45004055]
[1743978632437,0.1268417,78892.0,78871.0,0.64404055]
[1743978632637,0.36224,78892.0,78882.0,0.1268571]
[1743978632838,0.36220001,78892.0,78879.0,0.0428607]
[1743978633045,0.3623483,78892.0,78879.0,0.0428607]
[1743978633244,0.3623483,78892.0,78884.0,0.00012719]
[1743978633245,0.76799945,78892.0,78884.0,0.00012719]
[1743978633445,0.76784171,78892.0,78884.0,0.00012719]
[1743978633642,0.61784171,78892.0,78884.0,0.00012719]
[1743978633843,0.36220001,78892.0,78884.0,0.00012719]
[1743978634059,0.36233096,78892.0,78884.0,0.00012719]
[1743978634348,0.54663096,78892.0,78884.0,0.00012719]
[1743978634551,0.36233096,78892.0,78891.0,0.25461371]
[1743978634741,0.36233096,78892.0,78891.0,0.12777041]
[1743978634940,0.36333096,78892.0,78891.0,0.12777041]
[1743978635143,0.36333096,78892.0,78891.0,0.25461371]